Cogmind - Beta 16.1 @@@ ROGUE MODE // 2026.04.06 @ 18:44:15 Player: Dosh Result: Destroyed by G-34 Mercenary with Small Laser Performance ------------- Evolutions (0) 0 Regions Visited (2) 400 Robots Destroyed (38) 190 Value Destroyed (994) 994 Prototype IDs (1) 20 Alien Tech Used (0) 0 Bonus (0) 0 TOTAL SCORE: 1604 Bonus ------- None Cogmind --------- Core Integrity 0/250 Matter 25/300 Energy 125/125 System Corruption 0% Temperature Cool (6) Movement Core (500) Ox9 Location -10/Subcaves Parts ------- > --- POWER (1+3) ------ Light Ion Engine > --- PROPULSION (2) --- (None) > --- UTILITY (2) ------ Large Storage Unit Power Bank > --- WEAPON (2) ------- Light Assault Rifle Light Assault Rifle > --- INVENTORY (15) --- Light Armor Plating Light Armor Plating Scrap Shield Hacking Suite Powered Cannon Light Assault Rifle Subdweller Machine Gun Subdweller Machine Gun Heavy Battle Rifle Battle Cannon Slug Cannon Grenade Launcher Peak State ------------ > --- POWER ------------ (None) > --- PROPULSION ------- Light Treads > --- UTILITY ---------- Large Storage Unit Power Bank > --- WEAPON ----------- Heavy Battle Rifle Slug Cannon > --- INVENTORY -------- Light Armor Plating Light Armor Plating Hacking Suite Powered Cannon Light Assault Rifle Light Assault Rifle Light Assault Rifle Subdweller Machine Gun Subdweller Machine Gun Grenade Launcher [Rating: 21] Favorites ----------- Power Light Ion Engine Engine Light Ion Engine Propulsion Light Treads Treads Light Treads Utility Large Storage Unit Device Power Bank Storage Large Storage Unit Protection Light Armor Plating Weapon Light Assault Rifle Ballistic Gun Light Assault Rifle Ballistic Cannon Slug Cannon Launcher Grenade Launcher Build | -11 -10 -10 ------- Run | Yrd Mat Sub Slots Evolved . | . . . Power . | . . . Propulsion . | . . . Utility . | . . . Weapon . | . . . Parts Attached 23 | 5 10 8 Power 3 | 1 1 1 Engine 3 | 1 1 1 Core . | . . . Reactor . | . . . Propulsion 4 | 2 1 1 Treads 4 | 2 1 1 Leg . | . . . Wheel . | . . . Hover . | . . . Flight . | . . . Utility 7 | 1 3 3 Device 1 | . . 1 Storage 3 | 1 2 . Processor . | . . . Hackware . | . . . Protection 3 | . 1 2 Artifact . | . . . Weapon 9 | 1 5 3 Energy Gun . | . . . Energy Cannon . | . . . Ballistic Gun 5 | 1 2 2 Ballistic Cannon 1 | . . 1 Launcher 3 | . 3 . Special Weapon . | . . . Impact Weapon . | . . . Slashing Weapon . | . . . Piercing Weapon . | . . . Special Melee Weapon . | . . . Unidentified Prototypes 1 | . . 1 Parts Lost 10 | . . 10 Power 1 | . . 1 Propulsion 4 | . . 4 Utility 3 | . . 3 Weapon 2 | . . 2 Highest Loss Streak 4 | . . 4 To Critical Strikes . | . . . Average Backups 10 | . 9 11 Power . | . . . Propulsion . | . 1 . Utility 3 | . 3 3 Weapon 6 | . 3 7 Tool/Special . | . . . Unused Backups 9 | . 1 8 Power . | . . . Propulsion . | . . . Utility 5 | . 1 4 Weapon 4 | . . 4 Tool/Special . | . . . Average Slot Usage (%) 77 | . 96 71 Engine 11 | . 14 10 Treads 16 | . 28 12 Device 4 | . . 5 Storage 12 | . 14 11 Protection 7 | . 11 6 Ballistic Gun 14 | . 17 14 Ballistic Cannon 2 | . . 2 Launcher 7 | . 9 6 Peak Build Rating 21 | 5 8 21 Average Rating 12 | 4 7 14 On Entrance 4 | . 5 8 Avg Prop Armor Cover (%) . | . . . Naked Turns . | . . . Heaviest Build 37 | 11 32 37 Greatest Support 40 | 40 40 40 Greatest Overweight (x) 9 | . . 9 Average Overweight (x) 1 | . . 2 Largest Inventory Capacity 15 | 8 15 15 Average Capacity 14 | 7 11 14 Most Carried 15 | 1 11 15 Average Carried 11 | . 9 12 Final Capacity 15 | 8 15 15 Final Carried 14 | 1 11 14 Class Distribution -------------------- 100% | Mutant Dominant Class ---------------- Mutant | -10/Materials Mutant | -10/Subcaves Resources | -11 -10 -10 ----------- Run | Yrd Mat Sub Matter Collected 992 | 185 366 441 Remotely . | . . . Salvage Created 769 | . 383 386 Parts 60 | . 36 24 Haulers Intercepted 2 | . 2 . Recyclers Shooed . | . . . Parts Field Recycled . | . . . Retrieved Matter . | . . . Parts Self-Destructed 9 | . . 9 Prevented . | . . . Parts Restored . | . . . Kills | -11 -10 -10 ------- Run | Yrd Mat Sub Combat Hostiles Destroyed 30 | . 11 19 Guns 11 | . 7 4 Cannons 3 | . . 3 AOE 16 | . 4 12 Classes Destroyed 9 | . 7 2 Worker 2 | . 2 . Builder 1 | . 1 . Hauler 2 | . 2 . Operator 1 | . 1 . Watcher 2 | . 2 . Swarmer 10 | . 6 4 Grunt 6 | . 5 1 Sentry 1 | . . 1 Subdweller 13 | . . 13 Best Kill Streak 4 | . 4 3 Combat Bots Only 3 | . 3 3 Max Kills in Single Turn 3 | . 3 2 Gunslinging . | . . . Exploded 3 | . 3 2 Melee . | . . . Uniques/NPCs Destroyed . | . . . Combat | -11 -10 -10 -------- Run | Yrd Mat Sub Hostile Shots Fired 131 | . 39 92 Missed 32 | . 5 27 Hits 99 | . 34 65 Projectile 99 | . 34 65 Critical Strikes 2 | . 1 1 Damage Taken 1638 | . 333 1305 Core 259 | . 88 171 Absorbed by Shields . | . . . Core Remaining (%) 100 | 100 . . Volleys Fired 121 | . 62 59 Largest 2 | . 2 2 Hottest 73 | . 60 73 Shots Fired 219 | . 108 111 Gun 161 | . 97 64 Cannon 20 | . . 20 Launcher 38 | . 11 27 Special . | . . . Kinetic 181 | . 97 84 Thermal . | . . . Explosive 38 | . 11 27 Electromagnetic . | . . . Robot Hit Streak 13 | . 7 13 Robot Miss Streak 5 | . 3 5 Penetration Max . | . . . Secondary Targets 1 | . . 1 Max Gunslinging Chain 1 | . . 1 Shots Hit Robots 131 | . 60 71 Core Hits 72 | . 38 34 Critical Kills 1 | . . 1 Critical Parts Destroyed 2 | . 1 1 Critical Strikes 7 | . 1 6 Destroy 7 | . 1 6 Melee Attacks . | . . . Impact . | . . . Slashing . | . . . Piercing . | . . . Sneak Attacks . | . . . Combat Hostiles . | . . . Follow-up Attacks . | . . . Damage Inflicted 3202 | . 872 2330 Guns 1095 | . 464 631 Cannons 299 | . . 299 Explosions 1785 | . 385 1400 Melee . | . . . Ramming 23 | . 23 . Kinetic 1394 | . 464 930 Thermal . | . . . Explosive 1785 | . 385 1400 Electromagnetic . | . . . Impact . | . . . Slashing . | . . . Piercing . | . . . Highest Corruption . | . . . Average Corruption . | . . . Corruption Purged . | . . . Corruption Blocked . | . . . Overload Shots . | . . . Overflow Damage 33 | . . 33 Projectiles 16 | . . 16 Explosions 17 | . . 17 Melee . | . . . Knockbacks . | . . . Impact . | . . . Kinetic . | . . . Secondary . | . . . Self-Inflicted Damage 229 | . 50 179 Shots 11 | . 2 9 Rammed 8 | . 8 . Targets Rammed 9 | . 9 . Kicked . | . . . Crushed 1 | . 1 . Highest Temperature 57 | . 57 . Average Temperature 9 | . 9 . Received Heat Transfer 306 | . 45 261 Siege Activations . | . . . Martial Activations . | . . . Shielding Activations . | . . . Robots Disrupted . | . . . Combat Hostiles . | . . . Robots Corrupted . | . . . Combat Hostiles . | . . . Parts Fried . | . . . Impact Corruptions . | . . . Robots Melted . | . . . Combat Hostiles . | . . . Parts Melted . | . . . Heat Transferred . | . . . Parts Sabotaged . | . . . Parts Stolen . | . . . Parts Stripped . | . . . Power Chain Reactions . | . . . Alert | -11 -10 -10 ------- Run | Yrd Mat Sub Maximum Alert Level . | . . . Low Security (%) 100 | 100 100 . Level 1 . | . . . Level 2 . | . . . Level 3 . | . . . Level 4 . | . . . Level 5 . | . . . High Security . | . . . Max Security . | . . . Peak Influence 135 | . 135 . Initial . | . . . Average 42 | . 43 . Influence Increases 648 | . 508 140 Destroy 0b10 Robot/C 340 | . 220 120 Destroy 0b10 Robot/NC 40 | . 40 . Destroy Leader 78 | . 58 20 Successful Hack 30 | . 30 . Select Force Hacks 30 | . 30 . Disable Machine 60 | . 60 . Destroy Structure 70 | . 70 . Influence Decreases 619 | . 455 164 Entered New Map 26 | . . 26 Time Decay 563 | . 455 108 Lost Part 30 | . . 30 Squads Dispatched 2 | . 2 . Investigation 1 | . 1 . Extermination . | . . . Reinforcement 1 | . 1 . Assault . | . . . Garrison . | . . . Intercept . | . . . Searches Triggered . | . . . Construction Impeded . | . . . Haulers Reinforced . | . . . Active Scanning Responses . | . . . Cargo Convoy Interrupts . | . . . Stealth | -11 -10 -10 --------- Run | Yrd Mat Sub Distress Signals 1 | . 1 . Communications Jammed . | . . . Distress Signals . | . . . Times Spotted 41 | . 21 20 Peak Tracking Total 5 | . 5 3 Tactical Retreats . | . . . Traps | -11 -10 -10 ------- Run | Yrd Mat Sub Traps Triggered . | . . . Indirectly . | . . . Trap Hack Attempts . | . . . Triggered . | . . . Disarmed . | . . . Reprogrammed . | . . . Reused . | . . . Traps Extracted . | . . . Installed . | . . . Triggered . | . . . Machines | -11 -10 -10 ---------- Run | Yrd Mat Sub Machines Disabled 7 | . 4 3 Max in Single Turn 2 | . 2 2 Machines Repaired . | . . . Machines Dismantled . | . . . Machines Sabotaged . | . . . Overloaded Fab Kills . | . . . Hacking | -11 -10 -10 --------- Run | Yrd Mat Sub Machines Accessed 7 | . 7 . Terminals 6 | . 6 . Fabricators . | . . . Repair Stations . | . . . Recycling Units 1 | . 1 . Scanalyzers . | . . . Garrison Access . | . . . Total Hacks 17 | . 17 . Successful 11 | . 11 . Failed 6 | . 6 . Catastrophic . | . . . Database Lockouts . | . . . Manual 18 | . 18 . Terminals 16 | . 16 . Fabricators . | . . . Repair Stations . | . . . Recycling Units 1 | . 1 . Scanalyzers . | . . . Garrison Access . | . . . Terminal Hacks 2 | . 2 . Robot Schematic 1 | . 1 . Robot Analysis 1 | . 1 . Fabricator Hacks . | . . . Repair Station Hacks . | . . . Recycling Unit Hacks . | . . . Scanalyzer . | . . . Garrison Access Hacks . | . . . Unauthorized Hacks 9 | . 9 . Terminals 8 | . 8 . Assimilate 2 | . 2 . Botnet 1 | . 1 . Skim 5 | . 5 . Fabricators . | . . . Repair Stations . | . . . Recycling Units 1 | . 1 . Tunnel 1 | . 1 . Scanalyzers . | . . . Garrison Access . | . . . Data Cores Recovered 1 | . 1 . Used . | . . . Hacking Detections 6 | . 6 . Full Trace Events . | . . . Feedback Events . | . . . Feedback Blocked . | . . . Robot Schematics Acquired 1 | . 1 . Robots Built . | . . . Authchips . | . . . Time . | . . . Total Robot Build Rating . | . . . Part Schematics Acquired . | . . . Parts Built . | . . . Authchips . | . . . Time . | . . . Total Part Build Rating . | . . . Part Studies Acquired . | . . . Parts Repaired . | . . . Time . | . . . Parts Recycled . | . . . Recycled Matter . | . . . Retrieved Matter . | . . . Retrieved Components . | . . . Parts Scanalyzed . | . . . Part Schematics Acquired . | . . . Parts Damaged . | . . . Bothacking | -11 -10 -10 ------------ Run | Yrd Mat Sub Used RIF Installer . | . . . Robots Hacked . | . . . Non-combat . | . . . Combat . | . . . Robot Hacks Applied . | . . . Relay Couplers Released . | . . . Fabnet Peak Effective % . | . . . Robots Rewired . | . . . Allies Hacked . | . . . Hacks Repelled . | . . . Allies | -11 -10 -10 -------- Run | Yrd Mat Sub Total Allies 1 | . 1 . Largest Group 1 | . 1 1 Highest-Rated Group 10 | . 10 10 Highest-Rated Ally 10 | . 10 10 Total Orders 6 | . 2 4 STAY 3 | . 1 2 FOLLOW 3 | . 1 2 Ally Attacks . | . . . Total Damage . | . . . Kills . | . . . Allies Corrupted . | . . . Allies Melted . | . . . Intel | -11 -10 -10 ------- Run | Yrd Mat Sub Active Infowar (turns) . | . . . Robot Analysis Total 1 | . 1 . Derelict Logs Recovered 1 | . . 1 Drone Launches . | . . . Drone Recoveries . | . . . Exploration | -11 -10 -10 ------------- Run | Yrd Mat Sub Turns Passed 5940 | 58 1501 4381 Spaces Moved 2456 | 34 801 1621 Core 450 | 3 . 447 Treads 2006 | 31 801 1174 Legs . | . . . Wheels . | . . . Hover . | . . . Flight . | . . . Fastest Speed 50 | 50 160 160 Average Speed 223 | 150 160 256 Slowest Speed 500 | 160 160 500 Overloaded Moves . | . . . Propulsion Burnouts . | . . . Robots Hopped . | . . . Potential Cave-ins . | . . . Cave-ins Triggered . | . . . Exploration Rate (%) 58 | 4 98 74 Regions Visited 2 Branch Regions 1 Pre-discovered Areas 1 | . 1 . Known Exits Taken . | . . . Unknown Exits Taken 2 | 1 1 . Scrap Searched 2 | . . 2 Spaces Dug 5 | . . 5 Terrain Destroyed 225 | . 76 149 Melee . | . . . Projectile 7 | . . 7 AOE 218 | . 76 142 Terrain Rammed . | . . . Walls Destroyed . | . . . Machines Disabled . | . . . Actions | -11 -10 -10 --------- Run | Yrd Mat Sub Total 2701 | 39 925 1737 Wait 38 | . 24 14 Move 2454 | 33 800 1621 Hop . | . . . Pick Up 29 | 1 12 16 Fast Attach 11 | 5 3 3 Attach 7 | . . 7 Detach 2 | . 1 1 Swap 23 | . 9 14 Drop 7 | . 5 2 Fire 121 | . 62 59 Melee . | . . . Ram . | . . . Kick . | . . . Crush 9 | . 9 . Escape Stasis . | . . . Rewire . | . . . Trap . | . . . Miscellaneous . | . . . Route ------- -11/Scrapyard -10/Materials (discovered 5 exits: [*Mat x3] / [*Min] / [*Sub]) -10/Subcaves (discovered 1 exit: [*Mat]) History --------- Turn | Location | Event 23 | -11/Scrapyard | Discovered new exit (range 15) 59 | -11/Scrapyard | Entered Materials 272 | -10/Materials | Discovered new exit (range 13) 315 | -10/Materials | Build established: Mutant 594 | -10/Materials | Discovered new exit (range 5) 1022 | -10/Materials | Discovered new exit (range 12) 1228 | -10/Materials | Discovered new exit (range 16) 1513 | -10/Materials | Discovered new exit (range 7) 1560 | -10/Materials | Entered Subcaves 1560 | -10/Subcaves | Accompanied by 1 ally 1575 | -10/Subcaves | Learned Materials stockpile data 1599 | -10/Subcaves | Ambushed by Subdweller buried in earth 1910 | -10/Subcaves | Visited 4L-MR0's lab 1958 | -10/Subcaves | Found Prototype Energy Cannon 2258 | -10/Subcaves | Shifting Twisted Machinery released Sub. Machine Gun 2370 | -10/Subcaves | Shifting Twisted Machinery released Sub. Laser 2535 | -10/Subcaves | A swath of the cavern ceiling suddenly collapsed 2753 | -10/Subcaves | Discovered new exit (range 5) 2777 | -10/Subcaves | Shifting Twisted Machinery released Sub. Laser 2864 | -10/Subcaves | Core integrity fell below 50% 3476 | -10/Subcaves | A Subdweller sparked back to life 3540 | -10/Subcaves | Lost 4 parts (1p1n2u) 3570 | -10/Subcaves | Found Prototype Device 3570 | -10/Subcaves | Identified Power Bank 3571 | -10/Subcaves | Attached Power Bank, gained temporary slots: Power x3 5931 | -10/Subcaves | Core integrity fell below 20% 5941 | -10/Subcaves | Destroyed by G-34 Mercenary with Small Laser Last Messages --------------- 03588_ Acquired 8 matter. 03593_ Acquired 31 matter. 03598_ Acquired 1 matter. 03602_ Acquired 4 matter. 03624_ Acquired Battle Cannon. 03683_ Destroyed Flight Unit. 03683_ S-10 Pest destroyed. 03694_ Lgt. Treads destroyed. 03695_ Lgt. Ion Engine fries itself beyond repair. 03699_ S-10 Pest destroyed. 03700_ Lgt. Assault Rifle fries itself beyond repair. 03716_ The unstable cave ceiling collapses. 03719_ Acquired 3 matter. 03725_ The unstable cave ceiling collapses. 03922_ Acquired Lgt. Ion Engine. 05173_ Acquired Scrap Shield. 05764_ QC-1RH(u) tweaks Twisted Machinery. 05937_ G-47 Trooper destroyed. 05937_ Switching to secondary target: G-34 Mercenary. 05941_ Aluminum Leg fries itself beyond repair. Map ----- +----------------------------------------------------+ | ??????????##?????????????????????????????????????? | | ?????????????????????????????????????????????????? | | ?????????????????????????????????????????????????? | | ?????????????????????????????????????????????????? | | ?????????????????????????????????????????????????? | | ?????????????????????????????????????????????????? | | ?????????????????????????????????????????????????? | | ?????????????????????????????????????????????????? | | ?????????????????????????????????????????????????? | | ?????????????????????????????????????????????????? | | ????????????????????????????????????????????????## | | ???????????????????????????????????????????????## | | ???????????????????????????????????????????????# | | ???????????????????????????????????????????????## | | ?????????????????????????????????????###????????## | | ?????????????????????????####??????### ##????????# | | ?????????????????????????# ##????## ##?????### | | ?????????????????????????## #????# ####### | | ??????????????????######### #?????# | | ?????????????????## ## ##??????# | | ???????????????### #??###### | | ??????????????## #### # # | | ??????????????# | | ??????????????# o ## | | ?????????????## ## # # ##? | | ?????????????# @ ## ### | | ?????????##??# ### ## | | ????????###### = ##?### # # ## | | ???????### # g[% ##????########## | | ???????# # # #####??????????????# | | ##?????## ## ## ##??????????????????#" | | #??????# ! ## #???????????????????#""""" | | #??????# ##### ##??????????????????# """"" " | | ##????### ####??????????????????#"""""""""" | | "###### ###???????????????????? """"""""""# | | ## #??????????####?????? "? """""""# | | ## ## ###??###????##""##????????? """ " | | ### #?# ##?## ####?# "###??????? """""" | | ####?#####??# #?# #?### ""#???????????"""# | | #?????###### ### #??## ["#??????????????? | | ##?##### ## ## #######""" #??????????????? | | #?## # #### " " #??????????????? | | #?# #?## < #### """ ##??????????????? | | ### #### ## # ##???????????????? | | ## ##????????????????? | | ###?????????????????? | | ## ## ##???????????????????? | | ### #????????????????????? | | ## ## ##?## ##????????????????????? | | ###### #??# ####?????????????????????? | +----------------------------------------------------+ Best States ------------- Heat Dissipation 25 Energy Generation 10 Energy Capacity 250 Matter Stores 300 Matter Capacity 300 Sight Range 16 Terrain Scan Density 10 Armor Coverage 800 Evasion (%) 40 Recoil Reduction 2 Item Schematics ----------------- None Robot Schematics ------------------ M-13 Machinist | -10/Materials | Hacked Fabricated ------------ Nothing Repaired ---------- Nothing Studied --------- None Alien Tech Used ----------------- None Achievements -------------- Do Not Disturb Challenges ------------ None Game ------ Seed MassFlightCycler Manual? 0 Play Time 00:20:09 Cumulative 834.5 hours Start 2026.04.06 @ 18:31:26 End 2026.04.06 @ 18:44:15 Sessions 1 Manual Loads 0 Difficulty Rogue Special Mode None Game No. 416 Rogue 416 Adventurer 0 Explorer 0 Win Type - Total 71 Types 46/5/6/4/1/1/3/3/1/1 Lore% 92 Gallery% 82 Achievement% 71 Wizard Run 0 Options --------- Layout 0 ASCII 0 Keyboard 1 Movement Numpad Keybinds 0 Fullscreen 2 Font 18/SmallcapsGlow Map View 76x50 Zoom Use 0% Tactical HUD 1 Map Filters NONE Filters NONE Steam 1 RUN: d44f0929-4e33-4343-9bac-75b4444506d6